bitfinex-derivatives/quotes_BTCF0:USTF0_20251228
["timestamp","ask_amount","ask_price","bid_price","bid_amount"]
[1766910942102,0.00017079,87818.0,87801.0,0.0113984]
[1766910942296,0.02626871,87817.0,87801.0,0.0113984]
[1766910942496,0.00017079,87818.0,87801.0,0.0113984]
[1766910942700,0.02626873,87817.0,87801.0,0.0113984]
[1766910942901,0.00017079,87818.0,87801.0,0.0113984]
[1766910943096,0.02626873,87817.0,87801.0,0.0113984]
[1766910943292,0.00017079,87818.0,87801.0,0.0113984]
[1766910943587,0.02626876,87817.0,87801.0,0.0113984]
[1766910943787,0.00017079,87818.0,87801.0,0.0113984]
[1766910943999,0.02626876,87817.0,87801.0,0.0113984]
[1766910944202,0.00017079,87818.0,87801.0,0.0113984]
[1766910944499,0.02626881,87817.0,87801.0,0.0113984]
[1766910944700,0.00017079,87818.0,87801.0,0.0113984]
[1766910944901,0.02626881,87817.0,87801.0,0.0113984]
[1766910945101,0.00017079,87818.0,87801.0,0.0113984]
[1766910945303,0.02626881,87817.0,87801.0,0.0113984]
[1766910945504,0.00017079,87818.0,87801.0,0.0113984]
[1766910945699,0.02626887,87817.0,87801.0,0.0113984]
[1766910945898,0.00017079,87818.0,87801.0,0.0113984]
[1766910946202,0.02626887,87817.0,87801.0,0.0113984]
[1766910946396,0.00017079,87818.0,87801.0,0.0113984]
[1766910946705,0.02626894,87817.0,87801.0,0.0113984]
[1766910946896,0.00017079,87818.0,87801.0,0.0113984]
[1766910947096,0.02626893,87817.0,87801.0,0.0113984]
[1766910947296,0.00017079,87818.0,87801.0,0.0113984]
[1766910947596,0.02626901,87817.0,87801.0,0.0113984]
[1766910947796,0.00017079,87818.0,87801.0,0.0113984]
[1766910948102,0.026269,87817.0,87801.0,0.0113984]
[1766910948299,0.00017079,87818.0,87801.0,0.0113984]
[1766910948501,0.0262691,87817.0,87801.0,0.0113984]
[1766910948701,0.00017079,87818.0,87801.0,0.0113984]
[1766910948898,0.0262691,87817.0,87802.0,0.057]
[1766910949195,0.00017079,87818.0,87802.0,0.057]
[1766910949397,0.02626922,87817.0,87802.0,0.057]
[1766910949596,0.00017079,87818.0,87802.0,0.057]
[1766910949799,0.02626922,87817.0,87802.0,0.057]
[1766910950102,0.00017079,87818.0,87802.0,0.057]
[1766910950403,0.02626922,87817.0,87802.0,0.057]
[1766910950598,0.00017079,87818.0,87802.0,0.057]
[1766910950897,0.02626938,87817.0,87802.0,0.057]
[1766910951097,0.00017079,87818.0,87802.0,0.057]
[1766910951297,0.02626945,87817.0,87802.0,0.057]
[1766910951500,0.00017079,87818.0,87802.0,0.057]
[1766910951700,0.02626947,87817.0,87802.0,0.057]
[1766910951903,0.00017079,87818.0,87802.0,0.057]
[1766910969826,0.00017079,87818.0,87803.0,0.0113982]
[1766910979233,0.042,87821.0,87803.0,0.0113982]
[1766910979532,0.09688,87823.0,87805.0,0.0113978]
[1766910980334,0.09705079,87823.0,87805.0,0.01156859]
[1766910991332,0.0261275,87822.0,87805.0,0.01156859]
[1766910991530,0.0261275,87821.0,87805.0,0.01156859]
[1766910991730,0.0261275,87820.0,87805.0,0.01156859]
[1766910991927,0.09705079,87823.0,87805.0,0.01156859]
[1766910992122,0.0261275,87822.0,87805.0,0.01156859]
[1766910992322,0.0261275,87821.0,87809.0,0.0113974]
[1766910992522,0.00017079,87823.0,87809.0,0.0113974]
[1766910992727,0.02612703,87822.0,87809.0,0.0113974]
[1766910993032,0.02612703,87821.0,87809.0,0.0113974]
[1766910993222,0.00017079,87823.0,87809.0,0.0113974]
[1766910993428,0.02612648,87822.0,87809.0,0.0113974]
[1766910993730,0.02612648,87821.0,87809.0,0.0113974]
[1766910993931,0.00017079,87823.0,87809.0,0.0113974]
[1766910994130,0.02612648,87822.0,87809.0,0.0113974]
[1766910994434,0.02612648,87821.0,87815.0,0.00193337]
[1766910994630,0.00017079,87823.0,87815.0,0.00193337]
[1766910994834,0.0261261,87822.0,87819.0,0.00227451]
[1766910995132,0.00017079,87823.0,87819.0,0.00227451]
[1766910995335,0.02612489,87822.0,87819.0,0.00227451]
[1766910995528,0.057,87826.0,87819.0,0.00227451]
[1766910995729,0.02612489,87825.0,87811.0,0.0113971]
[1766910995931,0.02612489,87824.0,87822.0,0.00227451]
[1766910996131,0.02612489,87823.0,87822.0,0.00227451]
[1766910996436,0.09688,87829.0,87822.0,0.00227451]
[1766910996934,0.09688,87829.0,87811.0,0.1082771]
[1766910997735,0.00227706,87833.0,87813.0,0.0113968]
[1766910999727,0.00227706,87833.0,87815.0,0.0113966]
[1766911007738,0.01367146,87833.0,87812.0,0.068397]
[1766911008433,0.02560584,87832.0,87812.0,0.068397]
[1766911008638,0.02560584,87831.0,87812.0,0.068397]
[1766911008939,0.01367146,87833.0,87812.0,0.068397]
[1766911009139,0.02560584,87832.0,87812.0,0.068397]
[1766911009330,0.02560584,87831.0,87812.0,0.068397]
[1766911009526,0.0113946,87831.0,87812.0,0.068397]
[1766911018342,0.0113949,87829.0,87812.0,0.068397]
[1766911018549,0.0113949,87829.0,87812.0,0.057]
[1766911026861,0.0113953,87826.0,87812.0,0.057]
[1766911027463,0.0113949,87829.0,87812.0,0.057]
[1766911029171,0.0113949,87829.0,87812.0,0.068397]
[1766911030768,0.0113949,87829.0,87812.0,0.057]
[1766911031872,0.02560122,87828.0,87812.0,0.057]
[1766911032073,0.02560122,87827.0,87812.0,0.057]
[1766911032373,0.02560122,87826.0,87812.0,0.057]
[1766911032671,0.02560122,87825.0,87812.0,0.057]
[1766911032871,0.02560122,87824.0,87812.0,0.057]
[1766911033073,0.0113949,87829.0,87812.0,0.057]
[1766911033262,0.02560101,87828.0,87812.0,0.057]
[1766911033465,0.02560101,87827.0,87812.0,0.057]
[1766911033668,0.02560101,87826.0,87812.0,0.057]
[1766911033866,0.02560101,87825.0,87812.0,0.057]
[1766911034067,0.02560101,87824.0,87812.0,0.057]
[1766911034273,0.0113949,87829.0,87812.0,0.057]
[1766911034473,0.0256007,87828.0,87812.0,0.057]
[1766911034675,0.0256007,87827.0,87812.0,0.057]
[1766911034972,0.0256007,87826.0,87812.0,0.057]
[1766911035172,0.0256007,87825.0,87812.0,0.057]
[1766911035368,0.0256007,87824.0,87812.0,0.057]
[1766911035570,0.0113949,87829.0,87812.0,0.057]
[1766911035771,0.02560062,87828.0,87812.0,0.057]
[1766911035970,0.02560062,87827.0,87812.0,0.057]
[1766911036275,0.02560062,87826.0,87812.0,0.057]
[1766911036481,0.02560062,87825.0,87812.0,0.057]
[1766911036778,0.02560062,87824.0,87812.0,0.057]
[1766911036978,0.0113949,87829.0,87812.0,0.057]
[1766911037180,0.02560059,87828.0,87812.0,0.057]
[1766911037375,0.02560059,87827.0,87812.0,0.057]
[1766911037574,0.02560059,87826.0,87812.0,0.057]
[1766911037775,0.0113949,87829.0,87812.0,0.057]
[1766911037776,0.02560059,87825.0,87812.0,0.057]
[1766911037974,0.0113949,87829.0,87812.0,0.057]
[1766911037975,0.02560059,87824.0,87812.0,0.057]
[1766911038175,0.0113949,87829.0,87812.0,0.057]
[1766911038374,0.02560059,87828.0,87812.0,0.057]
[1766911038578,0.02560059,87827.0,87812.0,0.057]
[1766911038780,0.02560059,87826.0,87812.0,0.057]
[1766911039078,0.02560059,87825.0,87812.0,0.057]
[1766911039279,0.02560059,87824.0,87812.0,0.057]
[1766911039576,0.0113949,87829.0,87812.0,0.057]
[1766911039779,0.02560059,87828.0,87812.0,0.057]
[1766911039981,0.02560059,87827.0,87812.0,0.057]
[1766911040174,0.02560059,87826.0,87812.0,0.057]
[1766911040377,0.02560059,87825.0,87812.0,0.057]
[1766911040684,0.02560059,87824.0,87812.0,0.057]
[1766911040868,0.0113949,87829.0,87812.0,0.057]
[1766911041067,0.02560063,87828.0,87812.0,0.057]
[1766911041280,0.02560063,87827.0,87812.0,0.057]
[1766911041482,0.02560063,87826.0,87812.0,0.057]
[1766911041981,0.0113951,87827.0,87812.0,0.057]
[1766911047983,0.0113947,87830.0,87813.0,0.0113968]
[1766911048185,0.02560151,87829.0,87813.0,0.0113968]
[1766911048382,0.0113947,87830.0,87813.0,0.0113968]
[1766911048682,0.02560164,87829.0,87813.0,0.0113968]
[1766911048884,0.0113933,87841.0,87822.0,0.0113957]
[1766911049081,0.02560125,87840.0,87823.0,0.15388]
[1766911049279,0.02560125,87839.0,87823.0,0.15388]
[1766911049477,0.02560125,87838.0,87823.0,0.1652755]
[1766911049677,0.02560125,87837.0,87823.0,0.1652755]
[1766911049880,0.0113933,87841.0,87823.0,0.1652755]
[1766911050080,0.02559375,87840.0,87823.0,0.16544629]
[1766911050284,0.02559375,87839.0,87823.0,0.16544629]
[1766911050477,0.02559375,87838.0,87823.0,0.16544629]
[1766911050673,0.02559375,87837.0,87823.0,0.16544629]
[1766911050889,0.01156409,87841.0,87823.0,0.16544629]
[1766911051085,0.01309207,87836.0,87823.0,0.16544629]
[1766911051588,0.01156409,87841.0,87823.0,0.16544629]
[1766911051782,0.03866781,87840.0,87823.0,0.16544629]
[1766911051984,0.02557574,87839.0,87823.0,0.16544629]
[1766911052183,0.02557574,87838.0,87823.0,0.16544629]
[1766911052385,0.01309207,87839.0,87823.0,0.16544629]
[1766911052584,0.01156409,87841.0,87823.0,0.16544629]
[1766911052788,0.01309207,87838.0,87823.0,0.16544629]
[1766911053185,0.01156409,87841.0,87823.0,0.16544629]
[1766911053490,0.03866416,87840.0,87823.0,0.16544629]
[1766911053682,0.02557209,87839.0,87823.0,0.16544629]
[1766911053882,0.01309207,87840.0,87823.0,0.16544629]
[1766911054088,0.02556931,87839.0,87823.0,0.16544629]
[1766911054283,0.01156409,87841.0,87823.0,0.16544629]
[1766911054489,0.02556706,87840.0,87823.0,0.16544629]
[1766911054690,0.02556706,87839.0,87823.0,0.16544629]
[1766911054883,0.01156409,87841.0,87823.0,0.16544629]
[1766911055084,0.01309207,87838.0,87823.0,0.16544629]
[1766911055493,0.01156409,87841.0,87823.0,0.16544629]
[1766911055792,0.0113936,87839.0,87823.0,0.15405079]
[1766911055993,0.0113941,87835.0,87823.0,0.15405079]
[1766911058997,0.0113944,87833.0,87823.0,0.15405079]
[1766911062003,0.02552817,87832.0,87823.0,0.15405079]
[1766911062197,0.02552817,87831.0,87823.0,0.15405079]
[1766911062499,0.02552817,87830.0,87823.0,0.15405079]
[1766911062799,0.02552817,87829.0,87823.0,0.15405079]
[1766911063001,0.0113944,87833.0,87823.0,0.15405079]
[1766911063192,0.02552822,87832.0,87823.0,0.15405079]
[1766911063393,0.02552822,87831.0,87823.0,0.15405079]
[1766911063594,0.02552822,87830.0,87823.0,0.15405079]
[1766911063794,0.02552822,87829.0,87823.0,0.15405079]
[1766911064001,0.0113944,87833.0,87823.0,0.15405079]
[1766911064202,0.02552827,87832.0,87823.0,0.15405079]
[1766911064392,0.02552827,87831.0,87823.0,0.15405079]
[1766911064593,0.02552827,87830.0,87823.0,0.15405079]
[1766911064799,0.02552827,87829.0,87823.0,0.15405079]
[1766911065099,0.0113944,87833.0,87823.0,0.15405079]
[1766911065299,0.02552842,87832.0,87823.0,0.15405079]
[1766911065500,0.02552842,87831.0,87823.0,0.15405079]
[1766911065701,0.02552842,87830.0,87823.0,0.15405079]
[1766911065903,0.02552842,87829.0,87823.0,0.15405079]
[1766911066200,0.0113944,87833.0,87823.0,0.15405079]
[1766911066396,0.02552842,87832.0,87823.0,0.15405079]
[1766911066591,0.02552842,87831.0,87823.0,0.15405079]
[1766911066791,0.02552842,87830.0,87823.0,0.15405079]
[1766911067087,0.02552842,87829.0,87823.0,0.15405079]
[1766911067292,0.0113944,87833.0,87823.0,0.15405079]
[1766911067493,0.02552914,87832.0,87823.0,0.15405079]
[1766911067695,0.02552914,87831.0,87823.0,0.15405079]
[1766911067895,0.02552914,87830.0,87823.0,0.15405079]
[1766911068092,0.02552914,87829.0,87823.0,0.15405079]
[1766911068295,0.0113944,87833.0,87823.0,0.15405079]
[1766911068506,0.02552967,87832.0,87823.0,0.15405079]
[1766911068707,0.02552967,87831.0,87823.0,0.15405079]
[1766911069005,0.02552967,87830.0,87823.0,0.15405079]
[1766911069201,0.02552967,87829.0,87823.0,0.15405079]
[1766911069403,0.011394,87836.0,87823.0,0.15405079]
[1766911069700,0.02553033,87835.0,87823.0,0.15405079]
[1766911069901,0.02553033,87834.0,87823.0,0.15405079]
[1766911070105,0.02553033,87833.0,87823.0,0.15405079]
[1766911070301,0.02553033,87832.0,87823.0,0.15405079]
[1766911070501,0.02553033,87831.0,87823.0,0.15405079]
[1766911070701,0.02553033,87830.0,87823.0,0.15405079]
[1766911070896,0.02553033,87829.0,87823.0,0.15405079]
[1766911071099,0.011394,87836.0,87823.0,0.15405079]
[1766911071298,0.02553113,87835.0,87823.0,0.15405079]
[1766911071598,0.02553113,87834.0,87823.0,0.15405079]
[1766911071798,0.02553113,87833.0,87823.0,0.15405079]
[1766911071999,0.011394,87836.0,87823.0,0.15405079]
[1766911078315,0.02554831,87835.0,87823.0,0.15405079]
[1766911078516,0.011394,87836.0,87823.0,0.15405079]
[1766911078715,0.01309207,87834.0,87823.0,0.15405079]
[1766911079115,0.011394,87836.0,87823.0,0.15405079]
[1766911079416,0.01309207,87835.0,87823.0,0.15405079]
[1766911081817,0.011394,87836.0,87823.0,0.15405079]
[1766911082017,0.02554767,87835.0,87823.0,0.15405079]
[1766911082212,0.0113935,87839.0,87824.0,0.0113954]
[1766911082412,0.01309207,87834.0,87824.0,0.0113954]
[1766911082913,0.0113935,87839.0,87824.0,0.0113954]
[1766911083115,0.0255481,87838.0,87824.0,0.0113954]
[1766911083315,0.0255481,87837.0,87824.0,0.0113954]
[1766911083617,0.0255481,87836.0,87824.0,0.0113954]
[1766911083818,0.0255481,87835.0,87824.0,0.0113954]
[1766911084219,0.0113934,87840.0,87823.0,0.15405079]
[1766911084422,0.01309207,87834.0,87823.0,0.15405079]
[1766911084920,0.0113934,87840.0,87823.0,0.15405079]
[1766911085120,0.02554914,87839.0,87823.0,0.15405079]
[1766911085420,0.02554914,87838.0,87823.0,0.15405079]
[1766911085619,0.02554914,87837.0,87823.0,0.15405079]
[1766911085820,0.03864121,87837.0,87823.0,0.15405079]
[1766911086016,0.02554914,87836.0,87823.0,0.15405079]
[1766911088924,0.02554914,87835.0,87823.0,0.15405079]
[1766911089123,0.01309207,87837.0,87823.0,0.15405079]
[1766911089321,0.02551358,87836.0,87823.0,0.15405079]
[1766911089523,0.02551358,87835.0,87823.0,0.15405079]
[1766911089724,0.0113938,87838.0,87823.0,0.15405079]
[1766911089925,0.01309207,87834.0,87823.0,0.15405079]
[1766911090325,0.0113938,87838.0,87823.0,0.15405079]
[1766911090521,0.03857244,87837.0,87823.0,0.15405079]
[1766911090722,0.02548037,87836.0,87823.0,0.16544629]
[1766911090923,0.02548037,87835.0,87823.0,0.16544629]
[1766911091125,0.01309207,87836.0,87823.0,0.16544629]
[1766911091423,0.02548034,87835.0,87823.0,0.16544629]
[1766911091619,0.01309207,87835.0,87823.0,0.16544629]
[1766911091819,0.01156409,87841.0,87823.0,0.16544629]
[1766911092027,0.02548039,87840.0,87823.0,0.16544629]
[1766911092220,0.02548039,87839.0,87823.0,0.16544629]
[1766911092421,0.02548039,87838.0,87823.0,0.16544629]
[1766911092728,0.02548039,87837.0,87823.0,0.16544629]
[1766911093125,0.02548039,87836.0,87823.0,0.16544629]
[1766911093325,0.02548039,87835.0,87823.0,0.16544629]
[1766911093527,0.0113936,87839.0,87823.0,0.16544629]
[1766911093727,0.01309207,87834.0,87823.0,0.16544629]
[1766911094127,0.0113936,87839.0,87823.0,0.16544629]
[1766911094427,0.0385726,87838.0,87823.0,0.16544629]
[1766911094629,0.02548053,87837.0,87823.0,0.16544629]
[1766911095031,0.02548053,87836.0,87823.0,0.16544629]
[1766911095220,0.02548053,87835.0,87823.0,0.16544629]
[1766911095425,0.01309207,87838.0,87823.0,0.16544629]
[1766911095625,0.02548076,87837.0,87823.0,0.16544629]
[1766911095822,0.02548076,87836.0,87823.0,0.16544629]
[1766911096122,0.02548076,87835.0,87823.0,0.16544629]
[1766911096425,0.01309207,87838.0,87823.0,0.16544629]
[1766911096619,0.0254808,87837.0,87823.0,0.16544629]
[1766911096932,0.0254808,87836.0,87823.0,0.16544629]
[1766911097231,0.0254808,87835.0,87823.0,0.16544629]
[1766911097431,0.0113936,87839.0,87823.0,0.16544629]
[1766911097630,0.02548086,87838.0,87823.0,0.16544629]
[1766911097832,0.02548086,87837.0,87823.0,0.16544629]
[1766911098031,0.02548086,87836.0,87823.0,0.16544629]
[1766911098232,0.02548086,87835.0,87823.0,0.16544629]
[1766911098435,0.0113936,87839.0,87823.0,0.16544629]
[1766911098630,0.02548094,87838.0,87823.0,0.16544629]
[1766911098827,0.02548094,87837.0,87823.0,0.16544629]
[1766911099027,0.02548094,87836.0,87823.0,0.16544629]
[1766911099228,0.02548094,87835.0,87823.0,0.16544629]
[1766911099640,0.0113936,87839.0,87823.0,0.16544629]
[1766911099940,0.03857311,87838.0,87823.0,0.16544629]
[1766911100139,0.02548104,87837.0,87823.0,0.16544629]
[1766911100339,0.02548104,87836.0,87823.0,0.16544629]
[1766911100540,0.02548104,87835.0,87823.0,0.01156629]
[1766911100742,0.01309207,87835.0,87824.0,0.15384]
[1766911101050,0.0113936,87839.0,87824.0,0.15384]
[1766911101346,0.01309207,87834.0,87824.0,0.15384]
[1766911101748,0.0113936,87839.0,87824.0,0.15384]
[1766911101947,0.02548131,87838.0,87824.0,0.15384]
[1766911102247,0.02548131,87837.0,87824.0,0.15384]
[1766911102450,0.02548131,87836.0,87824.0,0.15384]
[1766911102839,0.02548131,87835.0,87824.0,0.15384]
[1766911103045,0.02548131,87834.0,87824.0,0.15384]
[1766911103246,0.02548131,87833.0,87824.0,0.15384]
[1766911103546,0.02548131,87832.0,87824.0,0.15384]
[1766911103747,0.02548131,87831.0,87824.0,0.15384]
[1766911103943,0.02548131,87830.0,87824.0,0.15384]
[1766911104143,0.02548131,87829.0,87824.0,0.15384]
[1766911104351,0.02548131,87828.0,87824.0,0.15384]
[1766911104545,0.0113936,87839.0,87824.0,0.15384]
[1766911104745,0.02548192,87838.0,87824.0,0.15384]
[1766911104946,0.02548192,87837.0,87824.0,0.15384]
[1766911105146,0.02548192,87836.0,87824.0,0.15384]
[1766911105346,0.02548192,87835.0,87824.0,0.15384]
[1766911105546,0.02548192,87834.0,87824.0,0.15384]
[1766911106045,0.02548192,87833.0,87824.0,0.15384]
[1766911106246,0.02548192,87832.0,87824.0,0.15384]
[1766911106447,0.02548192,87831.0,87824.0,0.15384]
[1766911106644,0.02548192,87830.0,87824.0,0.15384]
[1766911106844,0.02548192,87829.0,87824.0,0.15384]
[1766911107047,0.02548192,87828.0,87824.0,0.15384]
[1766911107246,0.0113935,87840.0,87824.0,0.15384]
[1766911107451,0.025483,87839.0,87824.0,0.15384]
[1766911107653,0.025483,87838.0,87824.0,0.15384]
[1766911107855,0.025483,87837.0,87824.0,0.15384]
[1766911108045,0.025483,87836.0,87824.0,0.15384]
[1766911108241,0.025483,87835.0,87824.0,0.15384]
[1766911108445,0.025483,87834.0,87824.0,0.15384]
[1766911109050,0.025483,87833.0,87824.0,0.15384]
[1766911109252,0.0113937,87838.0,87824.0,0.15384]
[1766911109253,0.025483,87832.0,87824.0,0.15384]
[1766911109450,0.0113937,87838.0,87824.0,0.15384]
[1766911109653,0.0254841,87837.0,87824.0,0.15384]
[1766911109849,0.0254841,87836.0,87824.0,0.15384]
[1766911110050,0.0254841,87835.0,87824.0,0.15384]
[1766911110249,0.0254841,87834.0,87824.0,0.15384]
[1766911110450,0.0254841,87833.0,87824.0,0.15384]
[1766911110750,0.02548411,87832.0,87824.0,0.15384]
[1766911110951,0.02548411,87831.0,87824.0,0.15384]
[1766911111254,0.02548411,87830.0,87824.0,0.15384]
[1766911111554,0.02548411,87829.0,87824.0,0.15384]
[1766911111755,0.02548411,87828.0,87824.0,0.15384]
[1766911111955,0.0113937,87838.0,87824.0,0.15384]
[1766911112147,0.03857618,87837.0,87824.0,0.15384]
[1766911112451,0.02548411,87836.0,87824.0,0.15384]
[1766911112854,0.0113937,87838.0,87824.0,0.15384]
[1766911113055,0.03857619,87837.0,87824.0,0.15384]
[1766911113254,0.02548412,87836.0,87824.0,0.15384]
[1766911113455,0.0113937,87838.0,87824.0,0.15384]
[1766911113653,0.02548412,87837.0,87824.0,0.15384]
[1766911113855,0.02548412,87836.0,87824.0,0.15384]
[1766911114153,0.0113937,87838.0,87824.0,0.15384]
[1766911114354,0.02548412,87837.0,87824.0,0.15384]
[1766911114654,0.02548412,87836.0,87824.0,0.15384]
[1766911114953,0.0113937,87838.0,87824.0,0.15384]
[1766911115154,0.02548412,87837.0,87824.0,0.15384]
[1766911115351,0.0113937,87838.0,87824.0,0.15384]
[1766911115352,0.02548412,87836.0,87824.0,0.15384]
[1766911115557,0.01309207,87836.0,87824.0,0.15384]
[1766911115754,0.0113937,87838.0,87824.0,0.15384]
[1766911115953,0.03857619,87837.0,87824.0,0.15384]
[1766911116157,0.03687812,87836.0,87824.0,0.15384]
[1766911116345,0.011394,87836.0,87824.0,0.15384]
[1766911116549,0.0113936,87839.0,87824.0,0.15384]
[1766911116849,0.02548413,87838.0,87824.0,0.15384]
[1766911117049,0.02548413,87837.0,87824.0,0.15384]
[1766911117249,0.02548413,87836.0,87824.0,0.15384]
[1766911117450,0.0113936,87839.0,87824.0,0.15384]
[1766911117660,0.0385762,87838.0,87824.0,0.15384]
[1766911117858,0.02548413,87837.0,87824.0,0.15384]
[1766911118046,0.02548413,87836.0,87824.0,0.15384]
[1766911118250,0.0113936,87839.0,87824.0,0.15384]
[1766911118545,0.01309207,87835.0,87824.0,0.15384]
[1766911118952,0.0113936,87839.0,87824.0,0.15384]
[1766911119151,0.03869277,87838.0,87824.0,0.15384]
[1766911119351,0.0256007,87837.0,87824.0,0.15384]
[1766911119553,0.0256007,87836.0,87824.0,0.15384]
[1766911119754,0.01309207,87837.0,87824.0,0.15384]
[1766911119954,0.0256007,87836.0,87824.0,0.15384]
[1766911120157,0.0113936,87839.0,87824.0,0.15384]
[1766911120361,0.0256007,87838.0,87824.0,0.15384]
[1766911120658,0.0256007,87837.0,87824.0,0.15384]
[1766911120857,0.0256007,87836.0,87824.0,0.15384]
[1766911121054,0.0256007,87835.0,87824.0,0.15384]
[1766911121255,0.0113936,87839.0,87824.0,0.15384]
[1766911121452,0.02560071,87838.0,87824.0,0.15384]
[1766911121648,0.02560071,87837.0,87824.0,0.15384]
[1766911121862,0.02560071,87836.0,87824.0,0.15384]
[1766911122057,0.02560071,87835.0,87824.0,0.15384]
[1766911122259,0.01309207,87835.0,87824.0,0.15384]
[1766911122459,0.0113939,87837.0,87824.0,0.15384]
[1766911122658,0.03869278,87836.0,87824.0,0.15384]
[1766911122863,0.02560071,87835.0,87824.0,0.15384]
[1766911123055,0.0113939,87837.0,87824.0,0.15384]
[1766911123254,0.02560072,87836.0,87824.0,0.15384]
[1766911123554,0.03869279,87835.0,87824.0,0.15384]
[1766911123755,0.0113939,87837.0,87824.0,0.15384]
[1766911123954,0.01309207,87834.0,87824.0,0.15384]
[1766911124366,0.0113939,87837.0,87824.0,0.15384]
[1766911124662,0.03869279,87836.0,87824.0,0.15384]
[1766911124865,0.02560072,87835.0,87824.0,0.15384]
[1766911125066,0.0113939,87837.0,87824.0,0.15384]
[1766911125264,0.02560073,87836.0,87824.0,0.15384]
[1766911125467,0.02560073,87835.0,87824.0,0.15384]
[1766911125652,0.0113939,87837.0,87824.0,0.15384]
[1766911125854,0.02560073,87836.0,87824.0,0.15384]
[1766911126066,0.02560073,87835.0,87824.0,0.15384]
[1766911126365,0.0113939,87837.0,87824.0,0.15384]
[1766911126565,0.02560075,87836.0,87824.0,0.15384]
[1766911126765,0.02560075,87835.0,87824.0,0.15384]
[1766911127068,0.0113939,87837.0,87824.0,0.15384]
[1766911127272,0.02560075,87836.0,87824.0,0.15384]
[1766911127572,0.02560075,87835.0,87824.0,0.15384]
[1766911127758,0.01309207,87835.0,87824.0,0.15384]
[1766911128058,0.0113939,87837.0,87824.0,0.15384]
[1766911128257,0.03869283,87836.0,87824.0,0.15384]
[1766911128457,0.02560076,87835.0,87824.0,0.15384]
[1766911128659,0.0113939,87837.0,87824.0,0.15384]
[1766911128959,0.02560076,87836.0,87824.0,0.15384]
[1766911129160,0.02560076,87835.0,87824.0,0.15384]
[1766911129470,0.02448547,87840.0,87824.0,0.15384]
[1766911129659,0.02560077,87839.0,87824.0,0.15384]
[1766911129859,0.02560077,87838.0,87824.0,0.15384]
[1766911130059,0.02560077,87837.0,87824.0,0.15384]
[1766911130359,0.02560077,87836.0,87824.0,0.15384]
[1766911130557,0.02560077,87835.0,87824.0,0.15384]
[1766911130964,0.0113934,87840.0,87824.0,0.15384]
[1766911131265,0.03869285,87839.0,87824.0,0.15384]
[1766911131465,0.02560078,87838.0,87824.0,0.15384]
[1766911131666,0.02560078,87837.0,87824.0,0.15384]
[1766911131867,0.02560078,87836.0,87824.0,0.15384]
[1766911132161,0.02560078,87835.0,87824.0,0.15384]
[1766911132362,0.0113934,87840.0,87824.0,0.15384]
[1766911132562,0.02560078,87839.0,87824.0,0.15384]
[1766911132764,0.02560078,87838.0,87824.0,0.15384]
[1766911133062,0.02560078,87837.0,87824.0,0.15384]
[1766911133258,0.02560078,87836.0,87824.0,0.15384]
[1766911133468,0.02560078,87835.0,87824.0,0.15384]
[1766911133773,0.01309207,87835.0,87824.0,0.15384]
[1766911133975,0.0113934,87840.0,87824.0,0.15384]
[1766911134174,0.0113937,87838.0,87824.0,0.15384]
[1766911134374,0.02560078,87837.0,87824.0,0.15384]
[1766911134574,0.02560078,87836.0,87824.0,0.15384]
[1766911134876,0.02560078,87835.0,87824.0,0.15384]
[1766911135172,0.0113937,87838.0,87824.0,0.15384]
[1766911135375,0.02560078,87837.0,87824.0,0.15384]
[1766911135673,0.02560078,87836.0,87824.0,0.15384]
[1766911135969,0.02560078,87835.0,87824.0,0.15384]
[1766911136170,0.01309207,87835.0,87824.0,0.15384]
[1766911136370,0.0113937,87838.0,87824.0,0.15384]
[1766911136670,0.03869285,87837.0,87824.0,0.15384]
[1766911136866,0.02560078,87836.0,87824.0,0.15384]
[1766911137164,0.02560078,87835.0,87824.0,0.15384]
[1766911137366,0.0113937,87838.0,87824.0,0.15384]
[1766911137566,0.02560078,87837.0,87824.0,0.15384]
[1766911137766,0.02560078,87836.0,87824.0,0.15384]
[1766911137967,0.02560078,87835.0,87824.0,0.15384]
[1766911138167,0.0113937,87838.0,87824.0,0.15384]
[1766911138367,0.02560079,87837.0,87824.0,0.15384]
[1766911138568,0.02560079,87836.0,87824.0,0.15384]
[1766911138866,0.02560079,87835.0,87824.0,0.15384]
[1766911139068,0.0113937,87838.0,87824.0,0.15384]
[1766911139267,0.02560079,87837.0,87824.0,0.15384]
[1766911139459,0.02560079,87836.0,87824.0,0.15384]
[1766911139662,0.02560079,87835.0,87824.0,0.15384]
[1766911139959,0.0113937,87838.0,87824.0,0.15384]
[1766911140162,0.02560079,87837.0,87824.0,0.15384]
[1766911140362,0.02560079,87836.0,87824.0,0.15384]
[1766911140559,0.02560079,87835.0,87824.0,0.15384]
[1766911140763,0.0113937,87838.0,87824.0,0.15384]
[1766911140970,0.02560079,87837.0,87824.0,0.15384]
[1766911141167,0.02560079,87836.0,87824.0,0.15384]
[1766911141361,0.02560079,87835.0,87824.0,0.15384]
[1766911141564,0.01309207,87834.0,87824.0,0.15384]
[1766911141764,0.0113937,87838.0,87824.0,0.15384]
[1766911141961,0.02560079,87837.0,87824.0,0.15384]
[1766911142174,0.02560079,87836.0,87824.0,0.15384]
[1766911142375,0.02560079,87835.0,87824.0,0.15384]
[1766911142673,0.0113937,87838.0,87824.0,0.15384]
[1766911142876,0.02560079,87837.0,87824.0,0.15384]
[1766911143073,0.02560079,87836.0,87824.0,0.15384]
[1766911143273,0.02560079,87835.0,87824.0,0.15384]
[1766911143574,0.0113937,87838.0,87824.0,0.15384]
[1766911143770,0.0256008,87837.0,87824.0,0.15384]
[1766911143970,0.0256008,87836.0,87824.0,0.15384]
[1766911144166,0.0256008,87835.0,87824.0,0.1652354]
[1766911144372,0.01309207,87835.0,87824.0,0.1652354]
[1766911144574,0.0113936,87839.0,87824.0,0.1652354]
[1766911144776,0.03869288,87838.0,87824.0,0.15384]
[1766911144975,0.02560081,87837.0,87824.0,0.15384]
[1766911145174,0.02560081,87836.0,87824.0,0.15384]
[1766911145366,0.02560081,87835.0,87824.0,0.15384]
[1766911145572,0.01309207,87837.0,87824.0,0.15384]
[1766911145775,0.0256003,87836.0,87824.0,0.15384]
[1766911145975,0.0256003,87835.0,87824.0,0.15384]
[1766911146175,0.01309207,87838.0,87824.0,0.15384]
[1766911146380,0.02559931,87837.0,87824.0,0.15384]
[1766911146579,0.02559931,87836.0,87824.0,0.15384]
[1766911146776,0.02559931,87835.0,87824.0,0.15384]
[1766911146977,0.01309207,87838.0,87824.0,0.15384]
[1766911147275,0.02559931,87837.0,87824.0,0.15384]